[Event "Catalonia Championship Absolute 2024"]
[Site "Salou Tarragona"]
[Date "2024.05.13"]
[Round "2.1"]
[White "Lorenzo De La Riva, Lazaro"]
[Black "Narciso Dublan, Marc"]
[Result "1/2-1/2"]
[ECO "B12"]
[WhiteElo "2422"]
[BlackElo "2424"]
[Annotator "RC"]
[PlyCount "98"]
[EventDate "2024.05.06"]
[EventType "k.o."]
[EventCountry "ESP"]
[SourceTitle "playchess.com"]
[Source "ChessBase"]
[SourceQuality "1"]
[TimeControl "5400+30"]

1. e4 {[%emt 0:00:04]} c6 {[%emt 0:00:23]} 2. d4 {[%emt 0:00:12]} d5 {[%emt 0:00:08]} 3. e5 {[%emt 0:00:07]} c5 {[%emt 0:00:39]} 4. dxc5 {[%emt 0:00:08]} e6 {[%emt 0:00:25]} 5. c3 {[%emt 0:00:03]} Nc6 {[%emt 0:03:54]} 6. Nf3 {[%emt 0:01:30]} Bxc5 {[%emt 0:00:19]} 7. Bd3 {[%emt 0:01:09]} Nge7 {[%emt 0:04:31]} 8. b4 {[%emt 0:01:36]} Bb6 {[%emt 0:00:11]} 9. O-O {[%emt 0:00:46]} Ng6 {[%emt 0:01:03]} 10. Bxg6 {[%emt 0:05:23]} hxg6 {[%emt 0:02:16]} 11. Bg5 {[%emt 0:02:24]} f6 {[%emt 0:01:07]} 12. exf6 {[%emt 0:01:22]} gxf6 {[%emt 0:00:10]} 13. b5 {[%emt 0:08:54]} fxg5 {[%emt 0:12:38]} 14. bxc6 {[%emt 0:00:03]} bxc6 {[%emt 0:01:52]} 15. Qa4 {[%emt 0:05:33]} Bd7 {[%emt 0:05:03]} 16. Nbd2 {[%emt 0:04:42]} Qf6 {[%emt 0:01:55]} 17. h3 {[%emt 0:03:03]} g4 {[%emt 0:10:48]} 18. Qxg4 {[%emt 0:05:07]} e5 {[%emt 0:01:15]} 19. Qg3 {[%emt 0:01:18]} Rh5 {[%emt 0:05:04]} 20. c4 {[%emt 0:12:46]} e4 {[%emt 0:01:40]} 21. cxd5 {[%emt 0:02:02]} cxd5 {[%emt 0:01:03]} 22. Nh2 {[%emt 0:01:10]} Qg5 {[%emt 0:16:44]} 23. Ng4 {[%emt 0:00:33]} Bxg4 {[%emt 0:00:28]} 24. Qxg4 {[%emt 0:00:49]} Qxg4 {[%emt 0:00:34]} 25. hxg4 {[%emt 0:00:05]} Rh7 {[%emt 0:01:30]} 26. Rfe1 {[%emt 0:01:59]} O-O-O {[%emt 0:05:35]} 27. Rac1+ {[%emt 0:01:10]} Kb8 {[%emt 0:01:10]} 28. Nb3 {[%emt 0:00:25]} Rdh8 {[%emt 0:01:44]} 29. Kf1 {[%emt 0:00:08]} Rh1+ {[%emt 0:03:14]} 30. Ke2 {[%emt 0:00:03]} R1h2 {[%emt 0:01:30]} 31. Rg1 {[%emt 0:41:26]} Rc8 {[%emt 0:02:59]} 32. Rxc8+ {[%emt 0:00:00]} Kxc8 {[%emt 0:00:03]} 33. a4 {[%emt 0:00:00]} Kd7 {[%emt 0:09:31]} 34. a5 {[%emt 0:00:00]} Bd8 {[%emt 0:01:06]} 35. Rd1 {[%emt 0:00:00]} Kd6 {[%emt 0:00:45]} 36. g3 {[%emt 0:00:00]} Bg5 {[%emt 0:02:17]} 37. Nd2 {[%emt 0:00:00]} Bxd2 {[%emt 0:01:38]} 38. Rxd2 {[%emt 0:00:00]} Rh1 {[%emt 0:00:12]} 39. Rb2 {[%emt 0:00:00]} Ra1 {[%emt 0:02:36]} 40. Rb8 {[%emt 0:00:00]} Rxa5 {[%emt 0:00:00]} 41. Rg8 {[%emt 0:00:00]} Ra2+ {[%emt 0:00:00]} 42. Ke1 {[%emt 0:00:00]} a5 {[%emt 0:00:45]} 43. Rxg6+ {[%emt 0:00:00]} Ke5 {[%emt 0:00:33]} 44. g5 {[%emt 0:00:00]} d4 {[%emt 0:00:37]} 45. Ra6 {[%emt 0:00:00]} Ra1+ {[%emt 0:00:19]} 46. Kd2 {[%emt 0:00:00]} Ra2+ {[%emt 0:00:11]} 47. Ke1 {[%emt 0:00:00]} Ra1+ {[%emt 0:00:51]} 48. Kd2 {[%emt 0:00:00]} Ra2+ {[%emt 0:00:16]} 49. Ke1 {[%emt 0:00:00]} Ra1+ {[%emt 0:01:28]} 1/2-1/2

[Event "Catalonia Championship Absolute 2024"]
[Site "Salou Tarragona"]
[Date "2024.05.13"]
[Round "2.1"]
[White "Salinas Tomas, Daniel"]
[Black "Guerra Mendez, Jose Angel"]
[Result "0-1"]
[ECO "E20"]
[WhiteElo "2370"]
[BlackElo "2489"]
[Annotator "TA"]
[PlyCount "128"]
[EventDate "2024.05.06"]
[EventType "k.o."]
[EventCountry "ESP"]
[SourceTitle "playchess.com"]
[Source "ChessBase"]
[SourceQuality "1"]
[TimeControl "5400+30"]

{[%evp 13,128,-7,0,-14,0,0,0,-15,0,0,0,-27,0,-4,0,-38,0,-16,5,-22,-19,-70,-67,-112,-112,-106,-74,-82,-85,-67,-41,-55,-68,-123,-108,-127,-125,-185,-166,-208,-212,-258,-232,-220,-216,-210,-208,-222,-204,-395,-395,-440,-441,-433,-423,-387,-79,-95,-104,-83,-86,-95,-46,-102,-90,-80,-96,-109,-109,-116,-116,-116,-116,-116,-116,-116,-77,-77,-77,-77,-77,-147,-57,-77,0,-141,-153,-137,-145,-218,-218,-207,-204,-204,-204,-197,-189,-189,-167,-450,-191,-29962,-29964,-29964,-29965,-29964,-29964,-29975,-29976,-29979,-29980,-29980,-29981,-29981,-29982,-29983,-29984]} 1. d4 {[%emt 0:02:06]} Nf6 {[%emt 0:00:22]} 2. c4 {[%emt 0:00:31]} e6 {[%emt 0:01:38]} 3. g3 {[%emt 0:00:06]} Bb4+ {[%emt 0:03:20]} 4. Nc3 {[%emt 0:00:09]} Nc6 {[%emt 0:08:35]} 5. Bg2 {[%emt 0:00:47]} d5 {[%emt 0:07:07]} 6. Nf3 {[%emt 0:01:23]} dxc4 {[%emt 0:07:24]} 7. O-O {[%emt 0:00:23]} O-O {[%emt 0:00:19]} 8. Qa4 {[%emt 0:00:12]} Nd5 {[%emt 0:04:35]} 9. Qc2 {[%emt 0:00:36]} Be7 {[%emt 0:04:37]} 10. Rd1 {[%emt 0:00:24] The position is equal.} Ncb4 {[%emt 0:05:20]} 11. Qd2 {[%emt 0:00:09]} Nb6 {[%emt 0:00:47]} 12. h4 {[%emt 0:00:06][%cal Bh2h4,Bh4h5,Bh5h6][%mdl 32]} Bd7 {[%emt 0:05:25]} 13. Ne5 {[%emt 0:00:36]} Rb8 {[%emt 0:00:26]} 14. h5 {[%emt 1:30:02]} f6 {[%emt 0:00:52]} 15. Nxd7 {[%emt 0:00:00]} Qxd7 {[%emt 0:00:05]} 16. h6 {[%emt 0:00:00]} g6 {[%emt 0:00:07]} 17. Ne4 {[%emt 0:00:00]} (17. e3 $11) 17... Rbd8 $15 {[%emt 0:04:48]} 18. e3 {[%emt 0:00:00]} f5 {[%emt 0:13:40]} 19. Nc3 {[%emt 0:00:00][%cal Ob2b3]} c5 {[%emt 0:02:02] Black is more active.} 20. b3 {[%emt 0:00:00]} cxd4 {[%emt 0:05:39]} 21. exd4 {[%emt 0:00:00]} Nd3 {[%emt 0:00:04]} 22. Ne2 {[%emt 0:00:00]} Nxc1 {[%emt 0:01:54]} 23. Raxc1 {[%emt 0:00:00]} (23. Rdxc1 $15 Rc8 24. bxc4) 23... cxb3 $1 $17 {[%emt 0:00:03]} 24. axb3 {[%emt 0:00:00]} Nd5 {[%emt 0:00:21][%cal Of5f4]} 25. Rc2 {[%emt 0:00:00] [#]} (25. Bf3 $17 {was necessary.}) 25... f4 $1 $19 {[%emt 0:02:46][%mdl 512]} 26. gxf4 {[%emt 0:00:00]} (26. Nxf4 Bg5) 26... Bd6 {[%emt 0:01:46]} 27. Bh3 {[%emt 0:00:00]} Bxf4 {[%emt 0:02:38]} (27... Nxf4 28. Nxf4 Bxf4 (28... Rxf4 29. d5 $11) 29. Qe1 $15) 28. Nxf4 {[%emt 0:00:00]} Nxf4 {[%emt 0:00:06]} 29. Bg4 {[%emt 0:00:00]} Qd5 {[%emt 0:05:43] Repels Qa5} 30. f3 {[%emt 0:00:00]} Qg5 {[%emt 0:00:04]} (30... Qxb3 31. Re1) 31. Rc7 $2 {[%emt 0:00:00]} (31. Re1) 31... Qxh6 {[%emt 0:02:37] aiming for ...Qg5.} 32. Bxe6+ {[%emt 0:00:00]} Kh8 {[%emt 0:00:05]} 33. Bg4 {[%emt 0:00:00]} Qg5 {[%emt 0:00:56]} 34. d5 {[%emt 0:00:00]} h5 $2 {[%emt 0:03:36]} (34... Qxd5 35. Qb2+ (35. Qc3+ Qd4+ 36. Rxd4 Ne2+ 37. Kf2 Nxc3 $18) (35. Qc3+ Qd4+ 36. Rxd4 Ne2+ 37. Kf2 Nxc3 $18)) (34... Qf6 $19 35. d6 h5) 35. Qb2+ $17 {[%emt 0:00:04]} Qf6 $1 {[%emt 0:01:46]} (35... Rf6 $6 36. Rf7 Rdd6 (36... Nxd5 $2 37. Rxf6 Kg8 38. Re6 $18) 37. Re1 $11) 36. Qxf6+ {[%emt 0:01:48]} Rxf6 {[%emt 0:00:05]} 37. Bc8 {[%emt 0:00:21]} Nxd5 {[%emt 0:00:57]} (37... Rxd5 $6 38. Re1 Rd8 39. Ree7 $11) (37... b6 $17 38. Bb7 Ne6) 38. Rc5 {[%emt 0:06:27]} ({White should try} 38. Rxb7 $15 Rxc8 (38... Rxf3 39. Be6 $16) 39. Rxd5) 38... Rc6 {[%emt 0:01:20]} (38... Rxf3 $6 39. Bxb7 (39. Rdxd5 Rxd5 40. Rxd5 Rxb3 $18) 39... Rxb3 (39... Rg3+ $2 40. Kh2 $18) 40. Rdxd5 (40. Bxd5 Re3 $11) 40... Rxd5 41. Bxd5 $11) 39. Rxc6 {[%emt 0:01:35]} bxc6 {[%emt 0:00:05][%mdl 4096] Endgame. KRB-KRN} 40. Bb7 {[%emt 0:00:06]} Rd6 {[%emt 0:00:08]} 41. b4 {[%emt 0:00:09][%cal Ob4b5]} Kg7 {[%emt 0:01:25]} 42. Bxc6 {[%emt 0:01:42]} Rxc6 {[%emt 0:00:14]} 43. Rxd5 {[%emt 0:00:03] KR-KR} Kf6 {[%emt 0:01:22]} 44. Kg2 {[%emt 0:01:24]} Rb6 {[%emt 0:00:19]} 45. b5 {[%emt 0:00:27]} Ke6 {[%emt 0:01:21]} 46. Rg5 {[%emt 0:01:03]} Kd7 {[%emt 0:00:05]} 47. Rc5 {[%emt 0:00:36]} (47. f4 $142) 47... Rf6 {[%emt 0:05:06]} (47... Kd6 $1 $17 {[%cal Rd6c5]} 48. Rg5 Kc7) 48. Rc4 {[%emt 0:00:29]} Rb6 {[%emt 0:00:00]} (48... Rf5 $142 49. Ra4 Rxb5) 49. Rc5 {[%emt 0:00:31] Black converts the advantage convincingly.} Kd6 $1 {[%emt 0:00:00]} 50. Rg5 {[%emt 0:00:05] [#]} Kc7 $1 {[%emt 0:01:30]} 51. f4 {[%emt 0:00:36] [#]} (51. Kf2 $17 {might work better.}) 51... Rf6 $1 $19 {[%emt 0:00:00]} 52. Kf3 {[%emt 0:00:17]} Kb6 {[%emt 0:00:00]} 53. Ke4 {[%emt 0:00:23]} h4 {[%emt 0:00:00]} 54. Rg4 {[%emt 0:00:31]} (54. Ke5 Rf5+ (54... h3 $2 55. Rg1 $19) 55. Ke4 Rxg5 (55... Rxb5 56. Rxg6+ Kc5 57. Rh6 $11) 56. fxg5 Kxb5 57. Ke5 h3 58. Kf6 h2 59. Kxg6 h1=Q (59... h1=R {gets mated.} 60. Kf6 Rg1 61. g6 a5 62. Kf7 a4 63. g7 a3 64. g8=Q Rxg8 65. Kxg8 a2 66. Kf7 a1=Q 67. Ke6 Qd4 68. Kf5 Kc6 69. Kg5 Kd5 70. Kg6 Qe5 71. Kf7 Qg5 72. Ke8 Ke6 73. Kf8 Qg4 74. Ke8 Qg8#) 60. Kf6 Kc4 61. g6 Kd5 62. g7 Qh6+ (62... Qa1+ 63. Kf7 Qf1+ 64. Kg6 Qd3+ 65. Kg5 Ke5 66. Kg4 Qd1+ 67. Kg3 Ke4 68. Kg2 Qg4+ 69. Kf2 Qxg7 70. Ke1 Qg2 71. Kd1 Kd3 72. Ke1 Qg1#) 63. Kf5 Qxg7 64. Kf4 Qc3 65. Kg5 Qe5+ 66. Kg6 Ke6 67. Kh7 Qg3 68. Kh8 Kf6 69. Kh7 Qg7#) 54... Kxb5 {[%emt 0:00:00] White must now prevent ...a5.} 55. Rxh4 {[%emt 0:00:12]} a5 {[%emt 0:00:00] Hoping for ...a4.} 56. Rh1 $2 {[%emt 0:01:10]} (56. Kd4) 56... a4 {[%emt 0:00:00]} (56... Kc4 $142 {And now ...a4 would win.} 57. Ke3 Kb3 58. Rb1+ Kc2) 57. Rb1+ $2 {[%emt 0:00:20]} (57. Kd3 $19) 57... Kc4 {[%emt 0:00:07] Black mates.} 58. Rc1+ {[%emt 0:00:23]} Kb3 {[%emt 0:00:09]} 59. Rb1+ {[%emt 0:00:04]} Kc3 {[%emt 0:00:15]} 60. Ra1 {[%emt 0:00:12]} Ra6 {[%emt 0:00:30]} 61. Kf3 {[%emt 0:00:03]} a3 {[%emt 0:00:40]} 62. Kg4 {[%emt 0:00:04]} a2 {[%emt 0:00:28]} 63. Kg5 {[%emt 0:00:04]} Kb2 {[%emt 0:00:09]} 64. Rxa2+ {[%emt 0:00:10]} Kxa2 {[%emt 0:00:08] Weighted Error Value: White=0.28 (precise) /Black=0.21 (precise) .  Missed win:     	---       	Black=1      Mistake:       	White=9     	Black=4      Inaccurate:     	White=4     	Black=3      OK:         	White=22    	Black=19     Best:        	White=4     	Black=4      Strong:       	---       	Black=4} 0-1

[Event "Catalonia Championship Absolute 2024"]
[Site "Salou Tarragona"]
[Date "2024.05.14"]
[Round "2.2"]
[White "Guerra Mendez, Jose Angel"]
[Black "Salinas Tomas, Daniel"]
[Result "1-0"]
[ECO "B15"]
[WhiteElo "2489"]
[BlackElo "2370"]
[Annotator "TA"]
[PlyCount "131"]
[EventDate "2024.05.06"]
[EventType "k.o."]
[EventCountry "ESP"]
[SourceTitle "playchess.com"]
[Source "ChessBase"]
[SourceQuality "1"]
[TimeControl "5400+30"]

{[%evp 33,131,14,17,24,35,31,57,48,145,134,135,127,129,4,14,0,0,0,0,0,0,0,0,-79,-27,-80,95,84,92,91,88,93,147,152,149,143,142,44,44,14,13,13,52,52,52,52,153,150,256,258,468,440,466,449,435,407,320,320,877,836,648,503,6872,6826,6502,6441,6166,5917,5807,5800,5558,4866,5565,0,4475,1803,5527,4649,5089,4622,2243,1066,1121,1138,12836,12844,12850,29939,29949,29953,29953,29954,29944,12851,12838,1362,6166,6166,5716,5622]} 1. e4 {[%emt 0:01:20]} c6 {[%emt 0:00:10]} 2. d4 {[%emt 0:00:22]} d5 {[%emt 0:00:06]} 3. Nc3 {[%emt 0:01:08]} dxe4 {[%emt 0:00:10]} 4. Nxe4 {[%emt 0:00:08]} Nf6 {[%emt 0:00:06]} 5. Nxf6+ {[%emt 0:00:29]} exf6 {[%emt 0:00:08]} 6. Bc4 {[%emt 0:02:02]} Bd6 {[%emt 0:00:10]} 7. Qe2+ {[%emt 0:00:22]} Qe7 {[%emt 0:00:05]} 8. Qxe7+ {[%emt 0:00:16]} Kxe7 {[%emt 0:00:06]} 9. Ne2 {[%emt 0:01:14]} Be6 {[%emt 0:02:24]} 10. Bd3 {[%emt 0:02:21]} a5 {[%emt 0:06:49]} 11. Bf4 {[%emt 0:04:50]} a4 {[%emt 0:01:35]} 12. Bxd6+ {[%emt 0:06:19]} Kxd6 {[%emt 0:00:06]} 13. Kd2 {[%emt 0:00:09]} Nd7 {[%emt 0:01:55]} 14. c4 {[%emt 0:09:05]} Rhd8 {[%emt 0:04:31]} 15. Kc3 {[%emt 0:04:00]} f5 {[%emt 0:06:16]} 16. Rhe1 {[%emt 0:13:20]} b6 {[%emt 0:11:00]} 17. Bc2 {[%emt 0:02:38]} Nf6 {[%emt 0:06:05]} 18. f3 {[%emt 0:02:35]} b5 {[%emt 0:04:24]} 19. b3 {[%emt 0:00:44]} Ra7 {[%emt 0:04:13]} 20. d5 {[%emt 0:15:19]} b4+ {[%emt 0:09:17]} (20... cxd5 $14 21. cxb5 Rc7+ 22. Kd2 a3) 21. Kxb4 $16 {[%emt 0:00:59]} Rb8+ {[%emt 0:00:23]} 22. Kc3 {[%emt 0:00:19]} cxd5 {[%emt 0:00:07]} 23. Rad1 {[%emt 0:04:54]} ({Much weaker is} 23. bxa4 $6 Rc8 $11) (23. Nd4 $16 {aiming for Nb5+.} Bd7 24. Rad1 (24. Bxf5 dxc4 25. bxc4 Rc7 $11) (24. Nxf5+ Bxf5 25. Bxf5 axb3 $16) 24... axb3 25. axb3) 23... Rc7 {[%emt 0:08:53]} (23... axb3 {simplifies} 24. axb3 Rc7 25. Rd4 Ke7) 24. Nd4 {[%emt 0:07:41]} (24. bxa4 $2 {is the wrong capture.} Rxc4+ 25. Kd3 Nd7 $19) 24... axb3 {[%emt 0:01:45]} 25. axb3 {[%emt 0:00:44]} g6 {[%emt 0:00:30]} 26. Ra1 {[%emt 0:06:34]} Rb6 {[%emt 0:03:59]} 27. Nxe6 {[%emt 0:02:33]} fxe6 {[%emt 0:00:10]} 28. Kd4 {[%emt 0:00:03]} (28. Ra5 $11 {keeps the balance.}) 28... Nd7 {[%emt 0:11:42]} (28... dxc4 $17 29. bxc4 Ke7) 29. f4 {[%emt 0:00:05]} (29. Ra5 $11) 29... Rbc6 $2 {[%emt 0:02:01]} (29... Ke7 $17 {stays on course.} 30. g3 dxc4 31. bxc4 Rd6+ 32. Kc3 Nb6) 30. Rxe6+ $1 $16 {[%emt 0:01:46]} Kxe6 {[%emt 0:00:10]} 31. cxd5+ {[%emt 0:00:02]} Kd6 {[%emt 0:00:40]} 32. dxc6 {[%emt 0:00:48]} Rxc6 {[%emt 0:00:06]} (32... Nb8 $142) 33. Bd3 $16 {[%emt 0:00:06]} Nc5 {[%emt 0:00:41]} 34. Bc4 {[%emt 0:00:32]} Rb6 {[%emt 0:00:06]} 35. Ra7 {[%emt 0:03:01]} ({White should play} 35. Rd1 $16) 35... Nxb3+ $14 {[%emt 0:00:13]} 36. Kc3 {[%emt 0:01:47]} Nc5 {[%emt 0:01:03]} 37. Rxh7 {[%emt 0:00:06]} Ne4+ {[%emt 0:00:08]} 38. Kd4 {[%emt 0:00:38]} Rb2 {[%emt 0:00:06]} 39. g3 {[%emt 0:00:18]} Nf6 {[%emt 0:03:56] [#]} ({Black should try} 39... Nd2 $14) 40. Rh6 $1 $16 {[%emt 0:00:50]} Rd2+ {[%emt 0:01:45]} (40... Ke7 $16) 41. Bd3 $18 {[%emt 0:00:50]} Ng4 $2 {[%emt 0:00:33]} (41... Ke6 {was called for.} 42. Rxg6 Rxh2) 42. Rxg6+ $18 {[%emt 0:00:07]} Ke7 {[%emt 0:00:02]} 43. h3 {[%emt 0:01:07]} Nf2 {[%emt 0:00:29]} 44. Ke3 {[%emt 0:00:09]} Rxd3+ {[%emt 0:00:08]} 45. Kxf2 {[%emt 0:00:07]} Ra3 $2 {[%emt 0:00:13]} (45... Rd2+ 46. Ke1 Ra2) 46. h4 $18 {[%emt 0:08:43]} Ra2+ {[%emt 0:00:15]} 47. Kf3 {[%emt 0:00:00]} Ra3+ {[%emt 0:00:11]} (47... Kf7 $142 48. Rc6 Rh2) 48. Kg2 $18 {[%emt 0:00:00]} Ra2+ {[%emt 0:00:03]} 49. Kh3 {[%emt 0:00:00]} Ra1 {[%emt 0:00:01]} 50. Rg5 {[%emt 0:00:00]} Kf6 {[%emt 0:00:10]} 51. Rg8 {[%emt 0:00:00]} Rb1 {[%emt 0:00:27]} 52. Rf8+ {[%emt 0:00:00]} Ke6 {[%emt 0:00:07]} 53. Rg8 {[%emt 0:00:00]} Kf6 {[%emt 0:00:20]} 54. Ra8 {[%emt 0:00:44]} (54. Rc8 $142 Kg7 55. Rc5) 54... Rc1 {[%emt 0:00:26]} 55. Ra6+ {[%emt 0:00:37]} Kg7 {[%emt 0:00:07]} 56. Ra5 {[%emt 0:00:28]} Kf6 {[%emt 0:00:08]} 57. h5 {[%emt 0:00:32]} Rh1+ {[%emt 0:00:54]} 58. Kg2 {[%emt 0:00:05]} Rb1 {[%emt 0:00:04]} 59. Ra6+ {[%emt 0:00:27]} Kf7 {[%emt 0:00:08]} 60. h6 {[%emt 0:00:32]} Rc1 {[%emt 0:00:20]} 61. h7 {[%emt 0:01:08]} Kg7 {[%emt 0:00:03]} 62. Rh6 {[%emt 0:01:01]} Kh8 {[%emt 0:00:06] [#]} 63. Rh5 $1 {[%emt 0:00:13]} Rc5 {[%emt 0:00:35]} 64. Kh3 {[%emt 0:00:15]} Rb5 {[%emt 0:00:20]} 65. Kh4 {[%emt 0:00:07]} Ra5 {[%emt 0:00:05]} 66. Kg5 {[%emt 0:00:26]} 1-0

[Event "Catalonia Championship Absolute 2024"]
[Site "Salou Tarragona"]
[Date "2024.05.14"]
[Round "2.2"]
[White "Narciso Dublan, Marc"]
[Black "Lorenzo De La Riva, Lazaro"]
[Result "1-0"]
[ECO "A13"]
[WhiteElo "2424"]
[BlackElo "2422"]
[Annotator "TA"]
[PlyCount "54"]
[EventDate "2024.05.06"]
[EventType "k.o."]
[EventCountry "ESP"]
[SourceTitle "playchess.com"]
[Source "ChessBase"]
[SourceQuality "1"]
[TimeControl "5400+30"]

{[%evp 9,54,9,2,0,-8,1,0,0,8,-4,-18,-35,-29,-30,-33,-42,-33,-47,0,-70,-44,-158,9,0,19,17,37,22,38,0,23,35,12,17,402,412,408,422,410,409,608,606,1165,1195,1133,1071,1060]} 1. c4 {[%emt 0:00:06]} e6 {[%emt 0:00:05]} 2. g3 {[%emt 0:00:25]} d5 {[%emt 0:00:03][%cal Bd7d5,Bd5d4][%mdl 32]} 3. Bg2 {[%emt 0:00:17]} d4 {[%emt 0:00:05]} 4. Nf3 {[%emt 0:00:54]} Nc6 {[%emt 0:00:06]} 5. O-O {[%emt 0:00:20]} Nh6 {[%emt 0:00:13]} 6. d3 {[%emt 0:01:20]} Nf5 {[%emt 0:00:30]} 7. e4 {[%emt 0:01:55]} dxe3 {[%emt 0:00:18]} 8. fxe3 {[%emt 0:00:20] The position is equal.} h5 {[%emt 0:00:41][%cal Bh7h5,Bh5h4,Bh4h3][%mdl 32]} 9. Nc3 {[%emt 0:08:34]} (9. Ne1 $5) 9... h4 {[%emt 0:01:43]} 10. g4 {[%emt 0:00:40][%cal Bg3g4,Bg4g5][%mdl 32]} h3 $1 {[%emt 0:00:05]} 11. Bh1 {[%emt 0:00:38]} Nh6 {[%emt 0:03:03]} 12. g5 {[%emt 0:03:23]} Ng4 {[%emt 0:00:04]} 13. d4 {[%emt 0:01:30][%cal Og5g6]} Be7 {[%emt 0:01:52]} (13... e5 $1 $15) 14. Qe1 {[%emt 0:06:55]} (14. Ne1 $11 Rh4 15. Bf3) 14... f5 {[%emt 0:01:09][%cal Oc8d7]} 15. Bd2 {[%emt 0:10:20] [#]} ({White should play} 15. b3 $1 $15) 15... Rh5 $2 {[%emt 0:00:54]} (15... e5 $1 $17 {White must now prevent ...e4.} 16. dxe5 Ncxe5) 16. Ne2 $36 {[%emt 0:13:31][%mdl 2048] White is pushing.} Bxg5 {[%emt 0:06:35]} 17. Ng3 $1 {[%emt 0:01:36]} Bh4 {[%emt 0:01:23]} 18. Nxh4 {[%emt 0:01:33]} Rxh4 {[%emt 0:00:02]} 19. Rd1 {[%emt 0:07:17]} g6 {[%emt 0:00:08]} (19... Nxd4 $2 20. Ba5 $18) 20. Bc1 {[%emt 0:10:26]} Qe7 {[%emt 0:04:26]} 21. e4 {[%emt 0:02:14] aiming for exf5.} Bd7 $2 {[%emt 0:06:24][%mdl 8192] This costs Black the game.} (21... f4 $1 $11 22. e5 (22. Rxf4 $2 {perishes.} e5 $19) 22... g5) 22. exf5 $18 {[%emt 0:01:08]} gxf5 {[%emt 0:01:59] [#]} 23. Nxf5 $1 {[%emt 0:01:09][%mdl 512]} exf5 {[%emt 0:00:08]} 24. Bg5 {[%emt 0:00:08]} Rh7 {[%emt 0:01:58]} (24... Qxe1 $142 25. Rfxe1+ (25. Rdxe1+ Kf7 $18) 25... Kf7) 25. Bxe7 {[%emt 0:01:37] White is clearly winning.} Rxe7 {[%emt 0:00:02]} 26. Qh4 {[%emt 0:03:56]} O-O-O {[%emt 0:09:35]} 27. Bxc6 {[%emt 0:01:35]} Re2 {[%emt 0:00:02] Weighted Error Value: White=0.15 (very precise) /Black=0.68.  Loses game:     	---       	Black=1      Mistake:       	White=2     	Black=3      Inaccurate:     	---       	Black=2      OK:         	White=4     	Black=5      Best:        	White=6     	Black=2      Strong:       	White=1     	Black=1      Brilliant:      	White=1     	---} 1-0

[Event "Catalonia Championship Absolute 2024"]
[Site "Salou Tarragona"]
[Date "2024.05.14"]
[Round "2.2"]
[White "Garcia Ramos, Daniel"]
[Black "Ayats Llobera, Gerard"]
[Result "0-1"]
[ECO "C54"]
[WhiteElo "2406"]
[BlackElo "2449"]
[Annotator "RC"]
[PlyCount "88"]
[EventDate "2024.05.06"]
[EventType "k.o."]
[EventCountry "ESP"]
[SourceTitle "playchess.com"]
[Source "ChessBase"]
[SourceQuality "1"]
[TimeControl "5400+30"]

1. e4 {[%emt 0:00:09]} e5 {[%emt 0:00:03]} 2. Nf3 {[%emt 0:00:10]} Nc6 {[%emt 0:00:03]} 3. Bc4 {[%emt 0:00:32]} Bc5 {[%emt 0:00:27]} 4. c3 {[%emt 0:00:10]} Nf6 {[%emt 0:02:04]} 5. d4 {[%emt 0:00:46]} exd4 {[%emt 0:00:45]} 6. e5 {[%emt 0:00:06]} d5 {[%emt 0:00:30]} 7. Be2 {[%emt 0:00:20]} Ne4 {[%emt 0:00:21]} 8. cxd4 {[%emt 0:00:08]} Bb6 {[%emt 0:00:32]} 9. O-O {[%emt 0:00:08]} O-O {[%emt 0:00:05]} 10. Nc3 {[%emt 0:00:07]} Be6 {[%emt 0:00:42]} 11. Be3 {[%emt 0:05:16]} f6 {[%emt 0:00:56]} 12. exf6 {[%emt 0:01:33]} Qxf6 {[%emt 0:00:22]} 13. Na4 {[%emt 0:00:09]} Rae8 {[%emt 0:00:32]} 14. Rc1 {[%emt 0:01:22]} Bg4 {[%emt 0:03:13]} 15. Nxb6 {[%emt 0:01:19]} axb6 {[%emt 0:00:12]} 16. a3 {[%emt 0:21:55]} Qd6 {[%emt 0:04:33]} 17. b4 {[%emt 0:04:57]} Ra8 {[%emt 0:06:49]} 18. b5 {[%emt 0:08:27]} Nd8 {[%emt 0:05:24]} 19. a4 {[%emt 0:15:51]} Ne6 {[%emt 0:09:30]} 20. h3 {[%emt 0:04:46]} Bh5 {[%emt 0:09:17]} 21. g4 {[%emt 0:04:28]} Bf7 {[%emt 0:02:49]} 22. Bd3 {[%emt 0:09:45]} Nf4 {[%emt 0:03:27]} 23. Ne5 {[%emt 0:00:24]} Be6 {[%emt 0:11:01]} 24. f3 {[%emt 0:03:40]} Ng5 {[%emt 0:05:13]} 25. h4 {[%emt 0:06:49]} Nxd3 {[%emt 0:00:54]} 26. hxg5 {[%emt 0:06:23]} Nxc1 {[%emt 0:02:21]} 27. Qxc1 {[%emt 0:00:04]} Rxa4 {[%emt 0:00:28]} 28. Kg2 {[%emt 0:00:05]} Qa3 {[%emt 0:02:21]} 29. Qe1 {[%emt 0:02:18]} Qb2+ {[%emt 0:00:58]} 30. Kg3 {[%emt 0:02:36]} Ra2 {[%emt 0:04:45]} 31. Bf2 {[%emt 0:00:07]} Qxb5 {[%emt 0:02:40]} 32. Qc1 {[%emt 0:00:54]} g6 {[%emt 0:02:09]} 33. Re1 {[%emt 0:00:29]} Qb2 {[%emt 0:01:11]} 34. Qe3 {[%emt 0:00:06]} Qd2 {[%emt 0:00:31]} 35. Nxg6 {[%emt 0:00:49]} Qxe3 {[%emt 0:01:47]} 36. Rxe3 {[%emt 0:00:05]} hxg6 {[%emt 0:00:05]} 37. Rxe6 {[%emt 0:00:06]} Kf7 {[%emt 0:00:18]} 38. Rf6+ {[%emt 0:01:20]} Kg7 {[%emt 0:00:13]} 39. Re6 {[%emt 0:00:04]} Ra3 {[%emt 0:00:13]} 40. Be3 {[%emt 0:00:30]} Kf7 {[%emt 0:01:10]} 41. Rf6+ {[%emt 0:01:15]} Ke7 {[%emt 0:00:30]} 42. Bf4 {[%emt 0:00:11]} Rxf6 {[%emt 0:00:22]} 43. gxf6+ {[%emt 0:00:27]} Kxf6 {[%emt 0:00:03]} 44. Bxc7 {[%emt 0:00:06]} b5 {[%emt 0:00:03]} 0-1